fUSD/lending_fUSD_20260407
["ID","MTS","AMOUNT","RATE_DAILY","PERIOD"]
[420002410,1775602266786,-232.60255,0.00015692,2]
[420002411,1775602266796,-177.4914121,0.00015695,2]
[420002412,1775602266807,-151.0,0.000157,2]
[420002413,1775602266818,-151.0,0.000157,2]
[420002414,1775602266832,-151.0,0.000157,2]
[420002415,1775602266843,-151.0,0.000157,2]
[420002416,1775602266855,-235.10821,0.000157,2]
[420002417,1775602266866,-235.10821,0.000157,2]
[420002418,1775602266877,-235.10821,0.000157,2]
[420002419,1775602266888,-235.10821,0.000157,2]
[420002420,1775602266899,-150.0,0.000157,2]
[420002421,1775602266911,-11512.18553939,0.000157,5]
[420002422,1775602268476,-387.81446061,0.000157,5]
[420002423,1775602268487,-151.0,0.00015706,2]
[420002424,1775602268497,-151.0,0.00015706,2]
[420002425,1775602268507,-151.0,0.00015706,2]
[420002426,1775602268518,-298.379134,0.00015706,2]
[420002427,1775602268529,-153.3344108,0.00015706,2]
[420002428,1775602268542,-145.0447232,0.00015706,2]
[420002429,1775602268552,-298.379134,0.00015706,2]
[420002430,1775602268562,-298.379134,0.00015706,2]
[420002431,1775602268574,-151.0,0.00015706,2]
[420002432,1775602268585,-312.0,0.00015707,2]
[420002433,1775602268596,-55.1970088,0.00015712,2]
[420002434,1775602268609,-444.8029912,0.00015712,2]
[420002435,1775602268619,-151.0,0.00015713,2]
[420002436,1775602268630,-151.0,0.00015713,2]
[420002437,1775602268641,-151.0,0.00015713,2]
[420002438,1775602268651,-58.6828938,0.00015713,2]
[420002439,1775602268665,-92.3171062,0.00015713,2]
[420002440,1775602268675,-151.0,0.00015713,2]
[420002441,1775602268686,-151.0,0.00015713,2]
[420002442,1775602268696,-151.0,0.00015713,2]
[420002443,1775602268706,-151.0,0.00015713,2]
[420002444,1775602268716,-151.0,0.00015713,2]
[420002445,1775602268725,-50.74350959,0.00015713,2]
[420002446,1775602268738,-174.05941241,0.00015713,2]
[420002447,1775602268748,-224.802922,0.00015713,2]
[420002448,1775602268759,-224.802922,0.00015713,2]
[420002449,1775602268769,-224.802922,0.00015713,2]
[420002450,1775602268779,-340.2780465,0.00015713,2]
[420002451,1775602268793,-162.4410415,0.00015713,2]
[420002452,1775602268803,-502.719088,0.00015713,2]
[420002453,1775602268814,-502.719088,0.00015713,2]
[420002454,1775602268826,-502.719088,0.00015713,2]
[420002455,1775602268836,-151.0,0.00015713,2]
[420002456,1775602268847,-151.0,0.00015713,2]
[420002457,1775602268858,-151.0,0.00015713,2]
[420002458,1775602268869,-298.379134,0.00015713,2]
[420002459,1775602268879,-298.379134,0.00015713,2]
[420002460,1775602268888,-298.379134,0.00015713,2]
[420002461,1775602268899,-298.379138,0.00015713,2]
[420002462,1775602268909,-151.0,0.00015713,2]
[420002463,1775602268920,-12779.58027331,0.00015715,2]
[420002464,1775602268932,-150.0,0.00015718,2]
[420002465,1775602268944,-4253.73,0.00015722,2]
[420002466,1775602268957,-985.75,0.00015724,2]
[420002467,1775602268968,-150.0,0.0001573,2]
[420002468,1775602268978,-438.840234,0.00015731,7]
[420002469,1775602268988,-1810.879705,0.00015731,2]
[420002470,1775602268998,-284.43769691,0.00015732,2]
[420002471,1775602269009,-1000.0,0.00015732,2]
[420002472,1775602269019,-232.60255,0.00015732,2]
[420002473,1775602269030,-150.0,0.00015733,2]
[420002474,1775602269040,-190.749,0.00015737,2]
[420002475,1775602269060,-500.0,0.00015739,2]
[420002476,1775602269072,-500.0,0.00015739,2]
[420002477,1775602269084,-500.0,0.00015739,2]
[420002478,1775602269095,-500.0,0.00015739,2]
[420002479,1775602269105,-151.0,0.0001574,2]
[420002480,1775602269115,-151.0,0.0001574,2]
[420002481,1775602269125,-235.10821,0.0001574,2]
[420002482,1775602269135,-235.10821,0.0001574,2]
[420002483,1775602269146,-235.10821,0.0001574,2]
[420002484,1775602269156,-235.10821,0.0001574,2]
[420002485,1775602269166,-151.0,0.00015747,2]
[420002486,1775602269177,-151.0,0.00015747,2]
[420002487,1775602269187,-151.0,0.00015747,2]
[420002488,1775602269196,-151.0,0.00015747,2]
[420002489,1775602269206,-151.0,0.00015747,2]
[420002490,1775602269216,-151.0,0.00015747,2]
[420002491,1775602269226,-151.0,0.00015747,2]
[420002492,1775602269236,-151.0,0.00015747,2]
[420002493,1775602269247,-154.733021,0.00015747,2]
[420002494,1775602269258,-231.359488,0.00015747,2]
[420002495,1775602269268,-224.802922,0.00015747,2]
[420002496,1775602269278,-224.802922,0.00015747,2]
[420002497,1775602269288,-224.802922,0.00015747,2]
[420002498,1775602269298,-224.802912,0.00015747,2]
[420002499,1775602269308,-502.719088,0.00015747,2]
[420002500,1775602269318,-502.719088,0.00015747,2]
[420002501,1775602269330,-502.719088,0.00015747,2]
[420002502,1775602269340,-502.719078,0.00015747,2]
[420002503,1775602269351,-150.0,0.00015747,2]
[420002504,1775602269361,-151.0,0.0001575,2]
[420002505,1775602269371,-151.0,0.0001575,2]
[420002506,1775602269382,-151.0,0.0001575,2]
[420002507,1775602269392,-151.0,0.0001575,2]
[420002508,1775602269402,-151.0,0.0001575,2]
[420002509,1775602269425,-235.10821,0.0001575,2]
[420002510,1775602269434,-235.10821,0.0001575,2]
[420002511,1775602269444,-235.10821,0.0001575,2]
[420002512,1775602269453,-235.10821,0.0001575,2]
[420002513,1775602269463,-567.39483452,0.0001575,2]
[420002514,1775602269473,-1000.0,0.00015752,2]
[420002515,1775602269483,-161.67,0.00015753,2]
[420002516,1775602269494,-150.0,0.00015754,2]
[420002517,1775602269504,-1000.0,0.00015755,2]
[420002518,1775602269514,-151.0,0.00015757,2]
[420002519,1775602269524,-500.0,0.00015759,2]
[420002520,1775602269534,-500.0,0.00015759,2]
[420002521,1775602269544,-203.25678015,0.00015759,2]
[420002522,1775602269554,-500.0,0.00015759,2]
[420002523,1775602269563,-500.0,0.00015759,2]
[420002524,1775602269573,-280.77,0.00015759,2]
[420002525,1775602269583,-151.0,0.00015759,2]
[420002526,1775602269593,-151.0,0.00015759,2]
[420002527,1775602269602,-235.10821,0.00015759,2]
[420002528,1775602269612,-235.10821,0.00015759,2]
[420002529,1775602269622,-235.10821,0.00015759,2]
[420002530,1775602269632,-235.108208,0.00015759,2]
[420002531,1775602269642,-500.0,0.00015759,2]
[420002532,1775602269653,-504.18053324,0.00015759,2]
[420002533,1775602269663,-500.0,0.00015759,2]
[420002534,1775602269673,-500.0,0.00015759,2]
[420002535,1775602269684,-500.0,0.00015759,2]
[420002536,1775602269695,-500.0,0.00015759,2]
[420002537,1775602269705,-500.0,0.00015759,2]
[420002538,1775602269716,-496.10214758,0.00015759,2]
[420002539,1775602269727,-500.0,0.00015759,2]
[420002540,1775602269737,-25907.2960745,0.0001576,2]
[420002541,1775602269747,-12133.4295694,0.0001576,2]
[420002542,1775602269757,-563290.4724712,0.0001576,2]
[420002543,1775602269768,-151.0,0.0001576,2]
[420002544,1775602269778,-151.0,0.0001576,2]
[420002545,1775602269789,-151.0,0.0001576,2]
[420002546,1775602269799,-151.0,0.0001576,2]
[420002547,1775602269822,-151.0,0.0001576,2]
[420002548,1775602269841,-151.171974,0.0001576,2]
[420002549,1775602269858,-151.171974,0.0001576,2]
[420002550,1775602269873,-151.171974,0.0001576,2]
[420002551,1775602269889,-151.171974,0.0001576,2]
[420002552,1775602269907,-151.171974,0.0001576,2]
[420002553,1775602269923,-151.171974,0.0001576,2]
[420002554,1775602269941,-151.171974,0.0001576,2]
[420002555,1775602269960,-151.171974,0.0001576,2]
[420002556,1775602269978,-151.0,0.0001576,2]
[420002557,1775602269996,-151.0,0.0001576,2]
[420002558,1775602270012,-151.0,0.0001576,2]
[420002559,1775602270024,-151.0,0.0001576,2]
[420002560,1775602270042,-151.0,0.0001576,2]
[420002561,1775602270059,-151.0,0.0001576,2]
[420002562,1775602270076,-151.0,0.0001576,2]
[420002563,1775602270092,-151.0,0.0001576,2]
[420002564,1775602270109,-151.0,0.0001576,2]
[420002565,1775602270126,-151.0,0.0001576,2]
[420002566,1775602270138,-151.0,0.0001576,2]
[420002567,1775602270150,-151.0,0.0001576,2]
[420002568,1775602270167,-151.0,0.0001576,2]
[420002569,1775602270179,-151.0,0.0001576,2]
[420002570,1775602270195,-151.0,0.0001576,2]
[420002571,1775602270212,-151.0,0.0001576,2]
[420002572,1775602270228,-151.0,0.0001576,2]
[420002573,1775602270243,-263.237456,0.0001576,2]
[420002574,1775602270255,-2530.9430331,0.0001576,2]
[420002575,1775602270268,-151.0,0.0001576,2]
[420002576,1775602270283,-151.0,0.0001576,2]
[420002577,1775602270296,-151.0,0.0001576,2]
[420002578,1775602270327,-152.24048,0.0001576,2]
[420002579,1775602270343,-269.085234,0.0001576,2]
[420002580,1775602270358,-54931.9559358,0.0001576,2]
[420002581,1775602270374,-150.0,0.0001576,2]
[420002582,1775602270389,-42743.9996698,0.0001576,2]
[420002583,1775602270404,-37947.8186233,0.0001576,2]
[420002584,1775602270419,-4520.429435,0.0001576,2]
[420002585,1775602270434,-1000.0,0.00015761,2]
[420002586,1775602270448,-151.0,0.00015763,2]
[420002587,1775602270463,-151.0,0.00015763,2]
[420002588,1775602270478,-151.0,0.00015763,2]
[420002589,1775602270491,-272.264873,0.00015763,2]
[420002590,1775602270506,-1000.0,0.00015763,2]
[420002591,1775602270521,-312.0,0.00015766,2]
[420002592,1775602270536,-168.0,0.00015772,2]
[420002593,1775602270550,-500.0,0.00015773,2]
[420002594,1775602270565,-500.0,0.00015773,2]
[420002595,1775602270579,-500.0,0.00015773,2]
[420002596,1775602270593,-500.0,0.00015773,2]
[420002597,1775602270609,-500.0,0.00015773,2]
[420002598,1775602270623,-500.0,0.00015773,2]
[420002599,1775602270637,-500.0,0.00015773,2]
[420002600,1775602270651,-500.0,0.00015773,2]
[420002601,1775602270665,-500.0,0.00015773,2]
[420002602,1775602270679,-500.0,0.00015773,2]
[420002603,1775602270693,-500.0,0.00015773,2]
[420002604,1775602270708,-506.0,0.00015776,4]
[420002605,1775602270722,-261.11070625,0.0001578,2]
[420002606,1775602270738,-150.0,0.00015782,2]
[420002607,1775602270752,-312.0,0.00015783,2]
[420002608,1775602270767,-150.0,0.00015792,2]
[420002609,1775602270781,-500.0,0.00015794,2]
[420002610,1775602270796,-540.34,0.00015794,2]
[420002611,1775602270810,-645.95,0.00015794,2]
[420002612,1775602270825,-500.0,0.00015794,2]
[420002613,1775602270839,-500.0,0.00015794,2]
[420002614,1775602270852,-500.0,0.00015794,2]
[420002615,1775602270866,-500.0,0.00015794,2]
[420002616,1775602270881,-500.0,0.00015794,2]
[420002617,1775602270895,-500.0,0.00015794,2]
[420002618,1775602270909,-500.0,0.00015794,2]
[420002619,1775602270923,-500.0,0.00015794,2]
[420002620,1775602270936,-500.0,0.00015794,2]
[420002621,1775602270949,-500.0,0.00015794,2]
[420002622,1775602270962,-1000.0,0.00015794,2]
[420002623,1775602270976,-500.0,0.00015794,2]
[420002624,1775602270990,-500.0,0.00015794,2]
[420002625,1775602271005,-500.0,0.00015794,2]
[420002626,1775602271020,-200.0,0.00015795,2]
[420002627,1775602271034,-200.0,0.00015795,2]
[420002628,1775602271048,-500.0,0.00015795,2]
[420002629,1775602271063,-235.57609654,0.00015795,2]
[420002630,1775602271077,-161.78574146,0.00015795,2]
[420002631,1775602271090,-1000.0,0.00015795,2]
[420002632,1775602271103,-1000.0,0.00015795,2]
[420002633,1775602271117,-1000.0,0.00015795,2]
[420002634,1775602271131,-1000.0,0.00015795,2]
[420002635,1775602271145,-1000.0,0.00015795,2]
[420002636,1775602271160,-740.988,0.00015795,2]
[420002637,1775602271176,-1900.0,0.00015798,5]
[420002638,1775602271191,-1000.0,0.000158,2]
[420002639,1775602271206,-150.0,0.000158,2]
[420002640,1775602271221,-2300.0,0.000158,5]
[420002641,1775602271236,-12779.58027331,0.00015807,2]
[420002642,1775602271249,-662.3915392,0.00015808,2]
[420002643,1775602271263,-1000.0,0.00015809,2]
[420002644,1775602271279,-150.0,0.00015812,2]
[420002645,1775602271292,-250.0,0.00015814,2]
[420002646,1775602271306,-150.0,0.00015822,2]
[420002647,1775602271318,-1000.0,0.00015823,2]
[420002648,1775602271332,-150.0,0.00015829,2]
[420002649,1775602271346,-1000.0,0.00015829,2]
[420002650,1775602271360,-1000.0,0.00015834,2]
[420002651,1775602271373,-736.0,0.00015838,2]
[420002652,1775602271387,-63901.91494605,0.0001584,2]
[420002653,1775602271400,-151.171974,0.0001584,2]
[420002654,1775602271414,-151.171974,0.0001584,2]
[420002655,1775602271428,-151.171974,0.0001584,2]
[420002656,1775602271442,-151.171974,0.0001584,2]
[420002657,1775602271456,-208.241699,0.0001584,2]
[420002658,1775602271470,-240.073776,0.0001584,2]
[420002659,1775602271483,-210.509512,0.0001584,2]
[420002660,1775602271497,-151.0,0.0001584,2]
[420002661,1775602271511,-500.0,0.0001584,2]
[420002662,1775602271525,-500.0,0.0001584,2]
[420002663,1775602271539,-500.0,0.0001584,2]
[420002664,1775602271552,-1000.0,0.00015847,2]
[420002665,1775602271566,-150.0,0.00015851,2]
[420002666,1775602271581,-1000.0,0.00015854,2]
[420002667,1775602271596,-1000.0,0.00015858,2]
[420002668,1775602271610,-1000.0,0.0001586,2]
[420002669,1775602271623,-1000.0,0.00015869,2]
[420002670,1775602271636,-151.0,0.0001587,2]
[420002671,1775602271648,-500.0,0.00015872,2]
[420002672,1775602271662,-200.0,0.00015872,2]
[420002673,1775602271677,-500.0,0.00015873,2]
[420002674,1775602271691,-500.0,0.00015873,2]
[420002675,1775602271705,-500.0,0.00015873,2]
[420002676,1775602271720,-500.0,0.00015873,2]
[420002677,1775602271734,-151.0,0.00015874,2]
[420002678,1775602271748,-150.0,0.00015877,2]
[420002679,1775602271761,-1000.0,0.0001588,2]
[420002680,1775602271776,-2000.0,0.0001589,2]
[420002681,1775602271790,-1000.0,0.00015892,2]
[420002682,1775602271803,-150.0,0.00015893,2]
[420002683,1775602271816,-1750.0,0.00015895,2]
[420002684,1775602271829,-1750.0,0.00015895,2]
[420002685,1775602271842,-1750.0,0.00015895,2]
[420002686,1775602271856,-1750.0,0.00015895,2]
[420002687,1775602271870,-1750.0,0.00015895,2]
[420002688,1775602271884,-1750.0,0.00015895,2]
[420002689,1775602271898,-1750.0,0.00015895,2]
[420002690,1775602271912,-1750.0,0.00015895,2]
[420002691,1775602271925,-1750.0,0.00015895,2]
[420002692,1775602271938,-1732.0,0.00015895,2]
[420002693,1775602271952,-4000.0,0.00015895,2]
[420002694,1775602271964,-1000.0,0.00015896,2]
[420002695,1775602271978,-1000.0,0.00015897,2]
[420002696,1775602271989,-151.0,0.00015899,2]
[420002697,1775602272002,-151.0,0.00015899,2]
[420002698,1775602272015,-151.171974,0.00015899,2]
[420002699,1775602272028,-151.171974,0.00015899,2]
[420002700,1775602272043,-151.171974,0.00015899,2]
[420002701,1775602272055,-151.171974,0.00015899,2]
[420002702,1775602272073,-151.0,0.00015899,2]
[420002703,1775602272088,-1000.0,0.00015899,2]
[420002704,1775602272102,-151.171974,0.000159,2]
[420002705,1775602272115,-151.171974,0.000159,2]
[420002706,1775602272128,-151.171974,0.000159,2]
[420002707,1775602272141,-151.171975,0.000159,2]
[420002708,1775602272155,-1244.1901,0.000159,2]
[420002709,1775602272168,-5000.0,0.000159,2]
[420002710,1775602272184,-4490.09302044,0.000159,2]
[420002711,1775602272197,-150.0,0.000159,2]
[420002712,1775602272210,-12779.58027331,0.000159,2]
[420002713,1775602272223,-261.11070625,0.000159,2]
[420002714,1775602272236,-2300.0,0.000159,5]
[420002715,1775602272250,-1500.0,0.000159,2]
[420002716,1775602272263,-1500.0,0.000159,2]
[420002717,1775602272275,-1500.0,0.000159,2]
[420002718,1775602272288,-1500.0,0.000159,2]
[420002719,1775602272301,-1500.0,0.000159,2]
[420002720,1775602272315,-1500.0,0.000159,2]
[420002721,1775602272328,-1500.0,0.000159,2]
[420002722,1775602272341,-1500.0,0.000159,2]
[420002723,1775602272355,-1500.0,0.000159,2]
[420002724,1775602272369,-1149.0,0.000159,2]
[420002725,1775602272381,-4113.27250699,0.000159,2]
[420002726,1775602272392,-1000.0,0.00015902,2]
[420002727,1775602272405,-150.0,0.00015906,2]
[420002728,1775602272417,-584.36,0.00015934,2]
[420002729,1775602272430,-150.0,0.00015949,2]
[420002730,1775602272443,-200.0,0.00015953,2]
[420002731,1775602272456,-200.0,0.00015953,2]
[420002732,1775602272468,-1000.0,0.0001596,2]
[420002733,1775602272483,-1000.0,0.00015964,2]
[420002734,1775602272496,-1000.0,0.00015967,2]
[420002735,1775602272510,-151.0,0.0001597,2]
[420002736,1775602272523,-3269.0,0.00015973,2]
[420002737,1775602272538,-500.0,0.00015973,2]
[420002738,1775602272550,-500.0,0.00015973,2]
[420002739,1775602272563,-500.0,0.00015973,2]
[420002740,1775602272578,-500.0,0.00015973,2]
[420002741,1775602272591,-500.0,0.00015973,2]
[420002742,1775602272604,-1000.0,0.00015976,2]
[420002743,1775602272618,-567.39483452,0.0001599,2]
[420002744,1775602272631,-1000.0,0.00015991,2]
[420002745,1775602272645,-361.8043621,0.00015993,2]
[420002746,1775602272658,-188.92749993,0.00015993,2]
[420002747,1775602272671,-172.20917,0.00015997,2]
[420002748,1775602272685,-985.75,0.00015998,2]
[420002749,1775602272698,-1554.0,0.00015999,5]
[420002750,1775602272710,-666.0,0.00015999,2]
[420002751,1775602272723,-500.0,0.00015999,2]
[420002752,1775602272735,-500.0,0.00015999,2]
[420002753,1775602272748,-396.18600857,0.00015999,2]
[420002754,1775602272759,-500.0,0.00015999,2]
[420002755,1775602272772,-500.0,0.00015999,2]
[420002756,1775602272785,-500.0,0.00015999,2]
[420002757,1775602272798,-500.0,0.00015999,2]
[420002758,1775602272811,-500.0,0.00015999,2]
[420002759,1775602272826,-500.0,0.00015999,2]
[420002760,1775602272839,-500.0,0.00015999,2]
[420002761,1775602272852,-500.0,0.00015999,2]
[420002762,1775602272864,-500.0,0.00015999,2]
[420002763,1775602272877,-500.0,0.00015999,2]
[420002764,1775602272891,-547.84,0.00015999,2]
[420002765,1775602272904,-500.0,0.00015999,2]
[420002766,1775602272918,-290.45108639,0.00015999,2]
[420002767,1775602272931,-500.0,0.00015999,2]
[420002768,1775602272944,-500.0,0.00015999,2]
[420002769,1775602272958,-500.0,0.00015999,2]
[420002770,1775602272971,-500.0,0.00015999,2]
[420002771,1775602272984,-604.16,0.00015999,2]
[420002772,1775602272996,-500.0,0.00015999,2]
[420002773,1775602273010,-500.0,0.00015999,2]
[420002774,1775602273022,-500.0,0.00015999,2]
[420002775,1775602273035,-500.0,0.00015999,2]
[420002776,1775602273049,-500.0,0.00015999,2]
[420002777,1775602273064,-500.0,0.00015999,2]
[420002778,1775602273079,-500.0,0.00015999,2]
[420002779,1775602273092,-500.0,0.00015999,2]
[420002780,1775602273106,-500.0,0.00015999,2]
[420002781,1775602273120,-500.0,0.00015999,2]
[420002782,1775602273134,-500.0,0.00015999,2]
[420002783,1775602273147,-500.0,0.00015999,2]
[420002784,1775602273160,-500.0,0.00015999,2]
[420002785,1775602273174,-500.0,0.00015999,2]
[420002786,1775602273187,-500.0,0.00015999,2]
[420002787,1775602273199,-500.0,0.00015999,2]
[420002788,1775602273213,-500.0,0.00015999,2]
[420002789,1775602273225,-500.0,0.00015999,2]
[420002790,1775602273238,-500.0,0.00015999,2]
[420002791,1775602273252,-500.0,0.00015999,2]
[420002792,1775602273265,-500.0,0.00015999,2]
[420002793,1775602273278,-500.0,0.00015999,2]
[420002794,1775602273292,-500.0,0.00015999,2]
[420002795,1775602273306,-500.0,0.00015999,2]
[420002796,1775602273320,-359.07918003,0.00015999,2]
[420002797,1775602273335,-500.0,0.00015999,2]
[420002798,1775602273348,-500.0,0.00015999,2]
[420002799,1775602273362,-500.0,0.00015999,2]
[420002800,1775602273375,-500.0,0.00015999,2]
[420002801,1775602273389,-500.0,0.00015999,2]
[420002802,1775602273403,-500.0,0.00015999,2]
[420002803,1775602273417,-500.0,0.00015999,2]
[420002804,1775602273429,-500.0,0.00015999,2]
[420002805,1775602273442,-517.21055633,0.00015999,2]
[420002806,1775602273455,-540.34,0.00015999,2]
[420002807,1775602273467,-540.34,0.00015999,2]
[420002808,1775602273481,-540.34,0.00015999,2]
[420002809,1775602273495,-540.34,0.00015999,2]
[420002810,1775602273507,-540.34,0.00015999,2]
[420002811,1775602273521,-540.34,0.00015999,2]
[420002812,1775602273534,-540.34,0.00015999,2]
[420002813,1775602273549,-540.34,0.00015999,2]
[420002814,1775602273563,-540.34,0.00015999,2]
[420002815,1775602273577,-540.34,0.00015999,2]
[420002816,1775602273589,-540.34,0.00015999,2]
[420002817,1775602273603,-540.34,0.00015999,2]
[420002818,1775602273616,-540.34,0.00015999,2]
[420002819,1775602273629,-540.34,0.00015999,2]
[420002820,1775602273641,-540.34,0.00015999,2]
[420002821,1775602273655,-540.34,0.00015999,2]
[420002822,1775602273668,-540.34,0.00015999,2]
[420002823,1775602273682,-540.34,0.00015999,2]
[420002824,1775602273695,-540.34,0.00015999,2]
[420002825,1775602273707,-540.34,0.00015999,2]
[420002826,1775602273721,-540.34,0.00015999,2]
[420002827,1775602273735,-540.34,0.00015999,2]
[420002828,1775602273750,-540.41908434,0.00015999,2]
[420002829,1775602273763,-645.95,0.00015999,2]
[420002830,1775602273777,-645.95,0.00015999,2]
[420002831,1775602273789,-645.95,0.00015999,2]
[420002832,1775602273801,-645.95,0.00015999,2]
[420002833,1775602273814,-645.95,0.00015999,2]
[420002834,1775602273827,-645.95,0.00015999,2]
[420002835,1775602273839,-645.95,0.00015999,2]
[420002836,1775602273852,-645.95,0.00015999,2]
[420002837,1775602273865,-645.95,0.00015999,2]
[420002838,1775602273878,-645.95,0.00015999,2]
[420002839,1775602273890,-645.95,0.00015999,2]
[420002840,1775602273903,-645.95,0.00015999,2]
[420002841,1775602273915,-645.95,0.00015999,2]
[420002842,1775602273928,-645.95,0.00015999,2]
[420002843,1775602273941,-645.95,0.00015999,2]
[420002844,1775602273954,-645.95,0.00015999,2]
[420002845,1775602273967,-645.95,0.00015999,2]
[420002846,1775602273981,-645.95,0.00015999,2]
[420002847,1775602273994,-645.95,0.00015999,2]
[420002848,1775602274007,-645.95,0.00015999,2]
[420002849,1775602274021,-645.95,0.00015999,2]
[420002850,1775602274035,-645.95,0.00015999,2]
[420002851,1775602274050,-646.14,0.00015999,2]
[420002852,1775602274064,-500.0,0.00015999,2]
[420002853,1775602274080,-500.0,0.00015999,2]
[420002854,1775602274096,-173.65,0.00015999,2]
[420002855,1775602274111,-500.0,0.00015999,2]
[420002856,1775602274124,-500.0,0.00015999,2]
[420002857,1775602274138,-500.0,0.00015999,2]
[420002858,1775602274152,-500.0,0.00015999,2]
[420002859,1775602274165,-500.0,0.00015999,2]
[420002860,1775602274178,-500.0,0.00015999,2]
[420002861,1775602274190,-500.0,0.00015999,2]
[420002862,1775602274204,-500.0,0.00015999,2]
[420002863,1775602274218,-500.0,0.00015999,2]
[420002864,1775602274231,-500.0,0.00015999,2]
[420002865,1775602274245,-500.0,0.00015999,2]
[420002866,1775602274258,-618.56,0.00015999,2]
[420002867,1775602274271,-481.06713155,0.00015999,2]
[420002868,1775602274286,-500.0,0.00015999,2]
[420002869,1775602274299,-500.0,0.00015999,2]
[420002870,1775602274311,-500.0,0.00015999,2]
[420002871,1775602274323,-500.0,0.00015999,2]
[420002872,1775602274337,-500.0,0.00015999,2]
[420002873,1775602274350,-500.0,0.00015999,2]
[420002874,1775602274363,-500.0,0.00015999,2]
[420002875,1775602274377,-500.0,0.00015999,2]
[420002876,1775602274390,-500.0,0.00015999,2]
[420002877,1775602274403,-500.0,0.00015999,2]
[420002878,1775602274416,-500.0,0.00015999,2]
[420002879,1775602274430,-500.0,0.00015999,2]
[420002880,1775602274442,-500.0,0.00015999,2]
[420002881,1775602274455,-500.0,0.00015999,2]
[420002882,1775602274468,-500.0,0.00015999,2]
[420002883,1775602274481,-500.0,0.00015999,2]
[420002884,1775602274494,-500.0,0.00015999,2]
[420002885,1775602274508,-500.0,0.00015999,2]
[420002886,1775602274520,-500.0,0.00015999,2]
[420002887,1775602274532,-500.0,0.00015999,2]
[420002888,1775602274545,-500.0,0.00015999,2]
[420002889,1775602274557,-500.0,0.00015999,2]
[420002890,1775602274570,-500.0,0.00015999,2]
[420002891,1775602274583,-500.0,0.00015999,2]
[420002892,1775602274596,-314.0298975,0.00015999,2]
[420002893,1775602274608,-500.0,0.00015999,2]
[420002894,1775602274620,-500.0,0.00015999,2]
[420002895,1775602274634,-500.0,0.00015999,2]
[420002896,1775602274646,-500.0,0.00015999,2]
[420002897,1775602274658,-500.0,0.00015999,2]
[420002898,1775602274671,-500.0,0.00015999,2]
[420002899,1775602274683,-500.0,0.00015999,2]
[420002900,1775602274696,-500.0,0.00015999,2]
[420002901,1775602274709,-500.0,0.00015999,2]
[420002902,1775602274722,-502.12,0.00015999,2]
[420002903,1775602274734,-150.0,0.00015999,2]
[420002904,1775602274747,-500.0,0.00015999,2]
[420002905,1775602274760,-500.0,0.00015999,2]
[420002906,1775602274772,-350.46972958,0.00015999,2]
[420002907,1775602274784,-500.0,0.00015999,2]
[420002908,1775602274796,-500.0,0.00015999,2]
[420002909,1775602274808,-500.0,0.00015999,2]